[Event "21st Sants Open 2019"]
[Site "Cotxeres de Sants"]
[Date "2019.08.25"]
[Round "3.17"]
[White "Carmona Huertas, Juan Antonio"]
[Black "Romeu Perulles, Jaume"]
[Result "1-0"]
[ECO "C42"]
[WhiteElo "1930"]
[BlackElo "1813"]
[Annotator "NA"]
[PlyCount "87"]
[EventDate "2019.08.22"]
[EventType "swiss"]
[EventCountry "ESP"]
[SourceTitle "playchess.com"]
[Source "ChessBase"]
[SourceQuality "1"]
[TimeControl "40/5400+30:1800+30"]

1. e4 {[%emt 0:00:00]} e5 {[%emt 0:01:44]} 2. Nf3 {[%emt 0:00:00]} Nf6 {[%emt 0:00:06]} 3. Nxe5 {[%emt 0:00:00]} d6 {[%emt 0:00:11]} 4. Nf3 {[%emt 0:00:00]} Nxe4 {[%emt 0:00:10]} 5. Nc3 {[%emt 0:00:00]} Nxc3 {[%emt 0:00:39]} 6. dxc3 {[%emt 0:00:03]} Be7 {[%emt 0:00:16]} 7. Be3 {[%emt 0:00:05]} O-O {[%emt 0:01:42]} 8. Qd2 {[%emt 0:00:03]} c6 {[%emt 0:02:36]} 9. O-O-O {[%emt 0:00:39]} a5 {[%emt 0:03:11]} 10. h4 {[%emt 0:00:43]} Nd7 {[%emt 0:03:56]} 11. Kb1 {[%emt 0:08:49]} Ne5 {[%emt 0:10:51]} 12. h5 {[%emt 0:11:00]} b5 {[%emt 0:06:32]} 13. h6 {[%emt 0:01:26]} g6 {[%emt 0:01:02]} 14. Bf4 {[%emt 0:05:31]} Nxf3 {[%emt 0:04:21]} 15. gxf3 {[%emt 0:00:07]} d5 {[%emt 0:00:33]} 16. Qd4 {[%emt 0:07:03]} Bf6 {[%emt 0:13:13]} 17. Be5 {[%emt 0:00:05]} Bxe5 {[%emt 0:00:23]} 18. Qxe5 {[%emt 0:00:07]} f6 {[%emt 0:00:27]} 19. Qd4 {[%emt 0:01:02]} Be6 {[%emt 0:06:19]} 20. Qc5 {[%emt 0:09:31]} Qc7 {[%emt 0:03:30]} 21. Bxb5 {[%emt 0:06:34]} Rfc8 {[%emt 0:01:36]} 22. Rhe1 {[%emt 0:24:27]} Qd7 {[%emt 0:02:05]} 23. Bd3 {[%emt 0:01:49]} a4 {[%emt 0:01:05]} 24. Re3 {[%emt 0:05:18]} Re8 {[%emt 0:01:49]} 25. Qd4 Qf7 {[%emt 0:05:00]} 26. Rde1 {[%emt 0:03:03]} Bd7 {[%emt 0:00:52]} 27. c4 {[%emt 0:01:28]} a3 {[%emt 0:03:26]} 28. Qc5 {[%emt 0:05:40]} Rxe3 {[%emt 0:05:42]} 29. Rxe3 {[%emt 0:00:05]} Re8 {[%emt 0:00:41]} 30. Qxa3 {[%emt 0:01:44]} dxc4 {[%emt 0:01:36]} 31. Be2 {[%emt 0:01:10]} Rxe3 {[%emt 0:02:54]} 32. fxe3 Be6 {[%emt 0:08:10]} 33. Qa8+ {[%emt 0:03:23]} Qf8 {[%emt 0:00:28]} 34. Qxc6 {[%emt 0:01:05]} Qe7 {[%emt 0:01:37]} 35. Bxc4 {[%emt 0:01:38]} Bxc4 {[%emt 0:01:01]} 36. Qxc4+ {[%emt 0:00:01]} Kf8 {[%emt 0:00:31]} 37. Qc8+ {[%emt 0:00:14]} Kf7 {[%emt 0:01:18]} 38. Qc4+ {[%emt 0:00:01]} Kf8 {[%emt 0:00:41]} 39. Qd4 {[%emt 0:00:01]} g5 {[%emt 0:01:36]} 40. a4 {[%emt 0:00:00]} Kf7 {[%emt 0:00:00]} 41. Qd3 {[%emt 0:03:13]} Kg8 {[%emt 0:03:02]} 42. a5 {[%emt 0:00:59]} Qb4 {[%emt 0:01:17]} 43. Qb3+ {[%emt 0:01:26]} Qxb3 {[%emt 0:00:15]} 44. cxb3 {[%emt 0:00:01]} 1-0

[Event "21st Sants Open 2019"]
[Site "Cotxeres de Sants"]
[Date "2019.08.25"]
[Round "3.18"]
[White "Salvador Gomez, Jesus Francisco"]
[Black "Cabrera Marmol, Manuel"]
[Result "0-1"]
[ECO "A20"]
[WhiteElo "1639"]
[BlackElo "1537"]
[Annotator "NA"]
[PlyCount "158"]
[EventDate "2019.08.22"]
[EventType "swiss"]
[EventCountry "ESP"]
[SourceTitle "playchess.com"]
[Source "ChessBase"]
[SourceQuality "1"]
[TimeControl "40/5400+30:1800+30"]

1. c4 {[%emt 0:00:00]} e5 {[%emt 0:14:08]} 2. g3 {[%emt 0:00:15]} Nf6 {[%emt 0:00:40]} 3. Bg2 {[%emt 0:00:17]} d5 {[%emt 0:01:45]} 4. cxd5 {[%emt 0:00:53]} Nxd5 {[%emt 0:02:42]} 5. Nc3 {[%emt 0:00:15]} Nb6 {[%emt 0:00:34]} 6. e3 {[%emt 0:02:05]} c6 {[%emt 0:14:12]} 7. Nge2 {[%emt 0:02:54]} Bg4 {[%emt 0:10:47]} 8. O-O {[%emt 0:04:26]} Be7 {[%emt 0:03:06]} 9. f3 {[%emt 0:07:18]} Be6 {[%emt 0:01:44]} 10. b3 {[%emt 0:01:47]} Qd7 {[%emt 0:02:51]} 11. d4 {[%emt 0:03:13]} exd4 {[%emt 0:03:53]} 12. Qxd4 {[%emt 0:01:53]} Bf6 {[%emt 0:02:27]} 13. Qd2 {[%emt 0:04:40]} Na6 {[%emt 0:03:30]} 14. Qxd7+ {[%emt 0:04:50]} Bxd7 {[%emt 0:10:02]} 15. Bb2 {[%emt 0:01:19]} O-O-O {[%emt 0:01:01]} 16. Rab1 {[%emt 0:00:44]} Be6 {[%emt 0:01:42]} 17. Na4 {[%emt 0:00:49]} Nxa4 {[%emt 0:08:34]} 18. Bxf6 {[%emt 0:03:06]} gxf6 {[%emt 0:00:03]} 19. bxa4 {[%emt 0:00:44]} Bxa2 {[%emt 0:01:05]} 20. Rb2 {[%emt 0:01:09]} Be6 {[%emt 0:01:49]} 21. Nd4 {[%emt 0:00:52]} c5 {[%emt 0:04:05]} 22. Rc1 {[%emt 0:00:31]} Kb8 {[%emt 0:01:21]} 23. Nxe6 {[%emt 0:03:00]} fxe6 {[%emt 0:00:02]} 24. f4 {[%emt 0:00:48]} Rd7 {[%emt 0:01:39]} 25. Bf1 {[%emt 0:02:27]} Rd6 {[%emt 0:03:14]} 26. Bxa6 {[%emt 0:07:41]} Rxa6 {[%emt 0:00:04]} 27. Rxc5 {[%emt 0:00:07]} Rxa4 {[%emt 0:00:42]} 28. Rcb5 {[%emt 0:00:24]} b6 {[%emt 0:00:33]} 29. Kf2 {[%emt 0:00:29]} Rc8 {[%emt 0:00:56]} 30. Rh5 {[%emt 0:02:05]} Rc7 {[%emt 0:01:17]} 31. Rh6 {[%emt 0:00:44]} Rf7 {[%emt 0:00:36]} 32. Ke2 {[%emt 0:03:33]} Rc4 {[%emt 0:00:46]} 33. Rh5 {[%emt 0:00:45]} Rc6 {[%emt 0:00:46]} 34. e4 {[%emt 0:01:10]} Rfc7 {[%emt 0:01:14]} 35. Rhb5 {[%emt 0:02:38]} Kb7 {[%emt 0:00:29]} 36. Kf3 {[%emt 0:01:16]} Rc5 {[%emt 0:00:28]} 37. h4 {[%emt 0:02:53]} h5 {[%emt 0:00:22]} 38. Rxc5 {[%emt 0:02:13]} Rxc5 {[%emt 0:00:05]} 39. Rd2 {[%emt 0:00:11]} Rc3+ {[%emt 0:00:54]} 40. Kg2 {[%emt 0:00:00]} Kc7 {[%emt 0:00:00]} 41. e5 {[%emt 0:02:40]} fxe5 {[%emt 0:03:27]} 42. Re2 {[%emt 0:04:51]} exf4 {[%emt 0:03:11]} 43. gxf4 {[%emt 0:00:19]} Kd6 {[%emt 0:04:54]} 44. Rd2+ {[%emt 0:00:52]} Ke7 {[%emt 0:01:20]} 45. Re2 {[%emt 0:00:07]} Kf6 {[%emt 0:00:34]} 46. Rb2 {[%emt 0:02:02]} Kf5 {[%emt 0:01:46]} 47. Rb5+ {[%emt 0:00:20]} Kxf4 {[%emt 0:07:22]} 48. Rxh5 {[%emt 0:00:45]} e5 {[%emt 0:01:30]} 49. Rh6 {[%emt 0:00:34]} e4 {[%emt 0:00:50]} 50. h5 {[%emt 0:01:41]} Kg5 {[%emt 0:01:38]} 51. Re6 {[%emt 0:02:19]} Kxh5 {[%emt 0:00:57]} 52. Rxe4 {[%emt 0:00:13]} Kg5 {[%emt 0:01:16]} 53. Rb4 {[%emt 0:00:31]} Kf5 {[%emt 0:00:24]} 54. Rb2 {[%emt 0:00:55]} Ke4 {[%emt 0:00:42]} 55. Ra2 {[%emt 0:00:16]} a5 {[%emt 0:01:04]} 56. Kf2 {[%emt 0:00:41]} Kd4 {[%emt 0:00:20]} 57. Ke2 {[%emt 0:00:19]} Kc4 {[%emt 0:01:10]} 58. Kd2 {[%emt 0:00:16]} Rh3 {[%emt 0:03:54]} 59. Rc2+ {[%emt 0:00:13]} Kb4 {[%emt 0:00:37]} 60. Rc6 {[%emt 0:00:16]} Kb5 {[%emt 0:00:10]} 61. Re6 {[%emt 0:00:24]} a4 {[%emt 0:00:18]} 62. Kc2 {[%emt 0:00:14]} Ka5 {[%emt 0:01:10]} 63. Kb2 {[%emt 0:00:34]} b5 {[%emt 0:00:06]} 64. Re5 {[%emt 0:00:24]} a3+ {[%emt 0:00:42]} 65. Ka2 {[%emt 0:00:09]} Ka4 {[%emt 0:00:32]} 66. Rd5 {[%emt 0:01:16]} b4 {[%emt 0:00:45]} 67. Rd4 {[%emt 0:00:19]} Rh2+ {[%emt 0:00:35]} 68. Ka1 {[%emt 0:01:01]} Kb3 {[%emt 0:00:24]} 69. Rd1 {[%emt 0:01:01]} Kc2 {[%emt 0:01:54]} 70. Rb1 {[%emt 0:01:09]} b3 {[%emt 0:01:47]} 71. Rc1+ {[%emt 0:00:01]} Kd3 {[%emt 0:00:10]} 72. Rd1+ {[%emt 0:00:30]} Kc3 {[%emt 0:00:30]} 73. Rf1 {[%emt 0:01:03]} Ra2+ {[%emt 0:02:08]} 74. Kb1 {[%emt 0:00:14]} Rd2 {[%emt 0:00:39]} 75. Ka1 {[%emt 0:01:41]} Rc2 {[%emt 0:00:47]} 76. Rf3+ {[%emt 0:00:35]} Kb4 {[%emt 0:00:11]} 77. Rf4+ {[%emt 0:00:35]} Rc4 {[%emt 0:00:10]} 78. Rf1 {[%emt 0:00:11]} a2 {[%emt 0:00:40]} 79. Rd1 {[%emt 0:01:17]} Ka3 {[%emt 0:00:31]} 0-1

[Event "21st Sants Open 2019"]
[Site "Cotxeres de Sants"]
[Date "2019.08.25"]
[Round "3.19"]
[White "Serentill Tost, Eduard"]
[Black "Sanchez Viana, Jordi"]
[Result "1/2-1/2"]
[ECO "B23"]
[WhiteElo "1621"]
[BlackElo "1535"]
[Annotator "NA"]
[PlyCount "143"]
[EventDate "2019.08.22"]
[EventType "swiss"]
[EventCountry "ESP"]
[SourceTitle "playchess.com"]
[Source "ChessBase"]
[SourceQuality "1"]
[TimeControl "40/5400+30:1800+30"]

1. e4 {[%emt 0:00:00]} c5 {[%emt 0:00:00]} 2. Nc3 {[%emt 0:00:00]} d6 {[%emt 0:00:49]} 3. f4 {[%emt 0:00:51]} e6 {[%emt 0:00:47]} 4. Nf3 {[%emt 0:00:54]} Nc6 {[%emt 0:00:45]} 5. Bc4 {[%emt 0:01:46]} Nf6 {[%emt 0:00:53]} 6. d3 {[%emt 0:02:08]} Be7 {[%emt 0:00:41]} 7. O-O {[%emt 0:01:00]} a6 {[%emt 0:00:38]} 8. a3 {[%emt 0:03:22]} b5 {[%emt 0:00:47]} 9. Ba2 {[%emt 0:02:40]} Rb8 {[%emt 0:03:12]} 10. Qe1 {[%emt 0:03:42]} O-O {[%emt 0:00:39]} 11. h3 {[%emt 0:06:02]} b4 {[%emt 0:04:48]} 12. Ne2 {[%emt 0:07:44]} bxa3 {[%emt 0:06:19]} 13. bxa3 {[%emt 0:01:42]} a5 {[%emt 0:04:46]} 14. Ng3 {[%emt 0:00:40]} h6 {[%emt 0:01:03]} 15. e5 {[%emt 0:01:06]} dxe5 {[%emt 0:00:39]} 16. Nxe5 {[%emt 0:01:46]} Nxe5 {[%emt 0:03:24]} 17. fxe5 {[%emt 0:02:33]} Qd4+ {[%emt 0:01:42]} 18. Be3 {[%emt 0:00:41]} Qxe5 {[%emt 0:00:13]} 19. Qf2 {[%emt 0:01:34]} Nd5 {[%emt 0:04:37]} 20. Bxd5 {[%emt 0:02:44]} Qxd5 {[%emt 0:05:11]} 21. Ne4 {[%emt 0:00:57]} Rb2 {[%emt 0:02:58]} 22. Bxc5 {[%emt 0:02:16]} Bxc5 {[%emt 0:00:54]} 23. Nxc5 {[%emt 0:00:59]} Bd7 {[%emt 0:09:11]} 24. Nxd7 {[%emt 0:05:42]} Qxd7 {[%emt 0:00:17]} 25. Rab1 {[%emt 0:02:37]} Rfb8 {[%emt 0:00:40]} 26. Rxb2 {[%emt 0:00:08]} Rxb2 {[%emt 0:00:19]} 27. Qc5 {[%emt 0:04:18]} Rb5 {[%emt 0:03:35]} 28. Qc3 {[%emt 0:03:22]} Rg5 {[%emt 0:01:45]} 29. Rf4 {[%emt 0:05:57]} e5 {[%emt 0:02:41]} 30. Rf3 {[%emt 0:00:09]} e4 {[%emt 0:02:44]} 31. dxe4 {[%emt 0:03:51]} Qd1+ {[%emt 0:00:20]} 32. Rf1 {[%emt 0:02:12]} Qe2 {[%emt 0:02:16]} 33. Qf3 {[%emt 0:01:23]} Qc4 {[%emt 0:01:32]} 34. Qb3 {[%emt 0:01:17]} Qd4+ {[%emt 0:00:44]} 35. Rf2 {[%emt 0:03:10]} Qd1+ {[%emt 0:01:20]} 36. Kh2 {[%emt 0:02:45]} Qd6+ {[%emt 0:02:05]} 37. g3 {[%emt 0:00:52]} Qg6 {[%emt 0:03:50]} 38. Qd3 {[%emt 0:02:41]} Qb6 {[%emt 0:02:53]} 39. Qf3 {[%emt 0:01:36]} Qe6 {[%emt 0:01:05]} 40. Qb3 {[%emt 0:00:00]} Qxe4 {[%emt 0:00:00]} 41. Qxf7+ {[%emt 0:02:03]} Kh7 {[%emt 0:01:07]} 42. Qb3 {[%emt 0:00:47]} Rg6 {[%emt 0:01:02]} 43. Qd3 {[%emt 0:00:31]} Qe5 {[%emt 0:02:10]} 44. Re2 {[%emt 0:00:58]} Qf6 {[%emt 0:00:39]} 45. Kg2 {[%emt 0:00:40]} Qc6+ {[%emt 0:02:00]} 46. Qe4 {[%emt 0:00:24]} Qc5 {[%emt 0:00:36]} 47. a4 {[%emt 0:01:35]} Qg5 {[%emt 0:02:00]} 48. Re3 {[%emt 0:01:58]} h5 {[%emt 0:00:54]} 49. h4 {[%emt 0:01:10]} Qg4 {[%emt 0:02:17]} 50. Qxg4 {[%emt 0:03:28]} Rxg4 {[%emt 0:00:18]} 51. Re5 {[%emt 0:01:22]} Rxa4 {[%emt 0:00:08]} 52. Rxh5+ {[%emt 0:00:09]} Kg6 {[%emt 0:00:38]} 53. Rc5 {[%emt 0:01:25]} Ra2 {[%emt 0:00:44]} 54. g4 {[%emt 0:02:26]} a4 {[%emt 0:00:09]} 55. Rc6+ {[%emt 0:00:34]} Kf7 {[%emt 0:00:56]} 56. Kf3 {[%emt 0:00:50]} a3 {[%emt 0:00:07]} 57. Ra6 Ra1 58. Ke2 {[%emt 0:04:04]} a2 {[%emt 0:00:53]} 59. Kd2 {[%emt 0:01:01]} Rg1 {[%emt 0:00:19]} 60. Rxa2 Rxg4 61. Kd3 {[%emt 0:04:21]} Rxh4 {[%emt 0:00:48]} 62. c4 {[%emt 0:00:14]} g5 {[%emt 0:01:21]} 63. Re2 {[%emt 0:00:18]} Rf4 {[%emt 0:00:13]} 64. c5 {[%emt 0:01:11]} Rf6 {[%emt 0:00:21]} 65. Kd4 {[%emt 0:00:57]} Re6 {[%emt 0:00:40]} 66. Rg2 {[%emt 0:02:03]} Kf6 {[%emt 0:01:29]} 67. Kd5 {[%emt 0:00:26]} Re1 {[%emt 0:00:36]} 68. Kd6 {[%emt 0:01:16]} Rd1+ {[%emt 0:00:21]} 69. Kc7 {[%emt 0:00:22]} Kf5 {[%emt 0:00:22]} 70. c6 {[%emt 0:01:48]} g4 {[%emt 0:00:13]} 71. Rb2 g3 72. Kb8 1/2-1/2

[Event "21st Sants Open 2019"]
[Site "Cotxeres de Sants"]
[Date "2019.08.26"]
[Round "4.2"]
[White "Puranik, Abhimanyu"]
[Black "Harikrishnan.A.Ra"]
[Result "1-0"]
[ECO "C50"]
[WhiteElo "2550"]
[BlackElo "2411"]
[Annotator "ChessBase"]
[PlyCount "85"]
[EventDate "2019.08.22"]
[EventType "swiss"]
[EventCountry "ESP"]
[SourceTitle "playchess.com"]
[Source "ChessBase"]
[SourceQuality "1"]
[TimeControl "40/5400+30:1800+30"]

1. e4 e5 {[%emt 0:00:00]} 2. Nf3 {[%emt 0:00:00]} Nc6 {[%emt 0:00:00]} 3. Bc4 {[%emt 0:00:00]} Bc5 {[%emt 0:00:00]} 4. O-O {[%emt 0:00:00]} Nf6 {[%emt 0:00:00]} 5. d3 {[%emt 0:00:06]} O-O {[%emt 0:00:01]} 6. h3 {[%emt 0:00:12]} h6 {[%emt 0:00:32]} 7. Re1 {[%emt 0:00:26]} d6 {[%emt 0:02:37]} 8. c3 {[%emt 0:00:13]} a6 {[%emt 0:01:43]} 9. a4 {[%emt 0:00:13]} Ba7 {[%emt 0:00:59]} 10. Nbd2 {[%emt 0:01:45]} Ne7 {[%emt 0:01:54]} 11. Nf1 {[%emt 0:01:15]} Ng6 {[%emt 0:00:22]} 12. Ng3 {[%emt 0:04:58]} Re8 {[%emt 0:04:04]} 13. Bb3 {[%emt 0:16:20]} Be6 {[%emt 0:10:33]} 14. d4 {[%emt 0:02:26]} exd4 {[%emt 0:22:58]} 15. cxd4 {[%emt 0:01:55]} c5 {[%emt 0:05:27]} 16. d5 {[%emt 0:06:44]} Bd7 {[%emt 0:00:24]} 17. a5 {[%emt 0:00:12]} b5 {[%emt 0:07:57]} 18. axb6 {[%emt 0:00:57]} Bxb6 {[%emt 0:00:05]} 19. Bc4 {[%emt 0:06:21]} Bb5 {[%emt 0:04:29]} 20. b3 {[%emt 0:02:38]} Ba5 {[%emt 0:02:39]} 21. Re3 {[%emt 0:00:35]} Nd7 {[%emt 0:11:45]} 22. Bb2 {[%emt 0:03:49]} Rb8 {[%emt 0:05:21]} 23. Bxb5 {[%emt 0:04:45]} Rxb5 {[%emt 0:01:10]} 24. Nf5 {[%emt 0:07:39]} Nf6 {[%emt 0:01:40]} 25. Ra4 {[%emt 0:00:55]} Bb6 {[%emt 0:01:42]} 26. Rc4 {[%emt 0:09:06]} Kh7 {[%emt 0:01:06]} 27. g3 {[%emt 0:03:30]} Rb4 {[%emt 0:03:25]} 28. Qa1 {[%emt 0:03:19]} Bc7 {[%emt 0:00:25]} 29. Rxb4 {[%emt 0:04:14]} cxb4 {[%emt 0:00:02]} 30. Qxa6 {[%emt 0:00:23]} Nxe4 {[%emt 0:03:07]} 31. Nxg7 {[%emt 0:03:19]} Bb6 {[%emt 0:00:42]} 32. Re2 {[%emt 0:10:03]} Re7 {[%emt 0:03:21]} 33. Nh5 {[%emt 0:01:27]} Ra7 {[%emt 0:00:53]} 34. Qc4 {[%emt 0:01:20]} f5 {[%emt 0:00:02]} 35. Rxe4 {[%emt 0:01:36]} fxe4 {[%emt 0:00:29]} 36. Nf6+ {[%emt 0:00:10]} Kg7 {[%emt 0:00:40]} 37. Qxe4 {[%emt 0:00:06]} Rf7 {[%emt 0:00:19]} 38. Ng4+ {[%emt 0:02:03]} Kh7 {[%emt 0:00:06]} 39. Nh4 {[%emt 0:02:31]} Qg5 {[%emt 0:00:05]} 40. Kg2 {[%emt 0:00:00]} h5 {[%emt 0:00:00]} 41. Bc1 {[%emt 0:06:53]} Re7 {[%emt 0:09:09]} 42. Bxg5 {[%emt 0:00:23]} Rxe4 {[%emt 0:00:02]} 43. Nf6+ {[%emt 0:00:06]} 1-0

[Event "21st Sants Open 2019"]
[Site "Cotxeres de Sants"]
[Date "2019.08.26"]
[Round "4.3"]
[White "Sanchez, Sebastian Felipe"]
[Black "Krysa, Leandro"]
[Result "0-1"]
[ECO "C70"]
[WhiteElo "2405"]
[BlackElo "2516"]
[Annotator "ChessBase"]
[PlyCount "62"]
[EventDate "2019.08.22"]
[EventType "swiss"]
[EventCountry "ESP"]
[SourceTitle "playchess.com"]
[Source "ChessBase"]
[SourceQuality "1"]
[TimeControl "40/5400+30:1800+30"]

1. e4 e5 2. Nf3 Nc6 3. Bb5 {[%emt 0:23:01]} a6 {[%emt 0:00:14]} 4. Ba4 {[%emt 0:00:02]} Nge7 {[%emt 0:00:06]} 5. O-O {[%emt 0:00:09]} g6 {[%emt 0:00:50]} 6. c3 {[%emt 0:01:56]} Bg7 {[%emt 0:00:31]} 7. d4 {[%emt 0:00:05]} exd4 {[%emt 0:00:47]} 8. cxd4 {[%emt 0:00:07]} b5 {[%emt 0:00:35]} 9. Bb3 {[%emt 0:03:17]} O-O {[%emt 0:00:50]} 10. Nc3 {[%emt 0:02:50]} Na5 {[%emt 0:00:05]} 11. Bc2 {[%emt 0:00:22]} d6 {[%emt 0:00:05]} 12. h3 {[%emt 0:05:19]} c5 {[%emt 0:01:39]} 13. Rb1 {[%emt 0:02:10]} cxd4 {[%emt 0:12:40]} 14. Nxd4 {[%emt 0:00:06]} Bb7 {[%emt 0:00:03]} 15. Bg5 {[%emt 0:01:36]} Rc8 {[%emt 0:02:34]} 16. Re1 {[%emt 0:02:32]} Re8 {[%emt 0:04:29]} 17. a4 {[%emt 0:19:18]} Qb6 {[%emt 0:11:32]} 18. Be3 {[%emt 0:04:21]} Nc4 {[%emt 0:03:21]} 19. axb5 {[%emt 0:00:04]} Nxe3 {[%emt 0:01:50]} 20. fxe3 {[%emt 0:00:04]} axb5 {[%emt 0:09:57]} 21. Ndxb5 {[%emt 0:00:08]} d5 {[%emt 0:13:42]} 22. Bb3 {[%emt 0:00:58]} Rcd8 {[%emt 0:02:25]} 23. Bxd5 {[%emt 0:30:30]} Nxd5 {[%emt 0:11:52]} 24. exd5 {[%emt 0:00:05]} Ba6 {[%emt 0:00:04]} 25. Qa4 {[%emt 0:00:56]} Rb8 {[%emt 0:01:23]} 26. Nc7 {[%emt 0:02:27]} Rxe3 {[%emt 0:01:26]} 27. Kh1 {[%emt 0:00:35]} Bd3 {[%emt 0:02:15]} 28. Rxe3 {[%emt 0:00:10]} Qxe3 {[%emt 0:00:08]} 29. Rd1 {[%emt 0:00:04]} Be5 {[%emt 0:01:09]} 30. Na6 {[%emt 0:01:14]} Qg3 {[%emt 0:01:49]} 31. Kg1 {[%emt 0:00:04]} Qh2+ {[%emt 0:00:28]} 0-1

[Event "21st Sants Open 2019"]
[Site "Cotxeres de Sants"]
[Date "2019.08.26"]
[Round "4.4"]
[White "Domingo Nunez, Alejandro"]
[Black "Salinas Herrera, Pablo"]
[Result "1/2-1/2"]
[ECO "C50"]
[WhiteElo "2392"]
[BlackElo "2506"]
[Annotator "ChessBase"]
[PlyCount "78"]
[EventDate "2019.08.22"]
[EventType "swiss"]
[EventCountry "ESP"]
[SourceTitle "playchess.com"]
[Source "ChessBase"]
[SourceQuality "1"]
[TimeControl "40/5400+30:1800+30"]

1. e4 {[%emt 0:00:00]} e5 {[%emt 0:13:33]} 2. Nf3 {[%emt 0:00:00]} Nc6 {[%emt 0:00:05]} 3. Bc4 {[%emt 0:00:00]} Nf6 {[%emt 0:00:11]} 4. d3 {[%emt 0:00:05]} Bc5 {[%emt 0:00:07]} 5. c3 {[%emt 0:00:07]} O-O {[%emt 0:00:19]} 6. a4 {[%emt 0:00:05]} a5 {[%emt 0:01:18]} 7. O-O {[%emt 0:00:23]} d6 {[%emt 0:01:03]} 8. Bg5 {[%emt 0:00:04]} h6 {[%emt 0:02:21]} 9. Bh4 {[%emt 0:00:25]} g5 {[%emt 0:00:05]} 10. Bg3 {[%emt 0:02:15]} Ba7 {[%emt 0:06:16]} 11. Nbd2 {[%emt 0:09:42]} Kg7 {[%emt 0:06:11]} 12. Bb3 {[%emt 0:11:00]} g4 {[%emt 0:21:50]} 13. Nh4 {[%emt 0:02:20]} Nh5 {[%emt 0:00:06]} 14. Nc4 {[%emt 0:05:51]} Qg5 {[%emt 0:02:46]} 15. Qd2 {[%emt 0:21:04]} Qxd2 {[%emt 0:12:01]} 16. Nxd2 {[%emt 0:00:03]} Ne7 {[%emt 0:00:26]} 17. Nc4 {[%emt 0:06:57]} f5 {[%emt 0:02:58]} 18. exf5 {[%emt 0:00:12]} Nxg3 {[%emt 0:00:18]} 19. hxg3 {[%emt 0:00:15]} Nxf5 {[%emt 0:00:05]} 20. Nxf5+ {[%emt 0:00:19]} Bxf5 {[%emt 0:00:14]} 21. Rad1 {[%emt 0:00:15]} Bd7 {[%emt 0:03:27]} 22. Nxa5 {[%emt 0:17:13]} h5 {[%emt 0:16:05]} 23. d4 {[%emt 0:05:50]} exd4 {[%emt 0:03:38]} 24. cxd4 {[%emt 0:00:05]} Rae8 {[%emt 0:01:25]} 25. Rd2 {[%emt 0:02:21]} Re4 {[%emt 0:01:24]} 26. Rfd1 {[%emt 0:03:13]} Rfe8 {[%emt 0:00:44]} 27. Kf1 {[%emt 0:03:29]} b6 {[%emt 0:00:52]} 28. Nc4 {[%emt 0:00:50]} b5 {[%emt 0:00:01]} 29. axb5 {[%emt 0:04:02]} Bxb5 {[%emt 0:00:05]} 30. Kg1 {[%emt 0:00:03]} Re1+ {[%emt 0:00:03]} 31. Rxe1 {[%emt 0:00:15]} Rxe1+ {[%emt 0:00:04]} 32. Kh2 {[%emt 0:00:03]} Bxc4 {[%emt 0:02:53]} 33. Bxc4 {[%emt 0:00:09]} Re4 {[%emt 0:00:03]} 34. b3 {[%emt 0:01:34]} Rxd4 {[%emt 0:03:18]} 35. Rxd4 {[%emt 0:00:48]} Bxd4 {[%emt 0:00:04]} 36. Kg1 {[%emt 0:00:44]} h4 {[%emt 0:00:33]} 37. gxh4 {[%emt 0:02:16]} g3 {[%emt 0:00:03]} 38. Kf1 {[%emt 0:00:04]} Bxf2 {[%emt 0:01:12]} 39. Ke2 {[%emt 0:01:50]} Kf6 {[%emt 0:00:40]} 1/2-1/2

[Event "21st Sants Open 2019"]
[Site "Cotxeres de Sants"]
[Date "2019.08.26"]
[Round "4.5"]
[White "Lopez Gonzalez, Abel Fabian"]
[Black "Arjun Kalyan"]
[Result "0-1"]
[ECO "D31"]
[WhiteElo "2370"]
[BlackElo "2482"]
[Annotator "ChessBase"]
[PlyCount "108"]
[EventDate "2019.08.22"]
[EventType "swiss"]
[EventCountry "ESP"]
[SourceTitle "playchess.com"]
[Source "ChessBase"]
[SourceQuality "1"]
[TimeControl "40/5400+30:1800+30"]

1. d4 {[%emt 0:03:34]} d5 {[%emt 0:00:00]} 2. c4 {[%emt 0:00:07]} e6 {[%emt 0:00:00]} 3. Nc3 {[%emt 0:00:55]} Be7 {[%emt 0:00:01]} 4. cxd5 {[%emt 0:00:16]} exd5 {[%emt 0:00:08]} 5. Bf4 {[%emt 0:00:10]} Nf6 {[%emt 0:00:24]} 6. e3 {[%emt 0:00:19]} Bf5 {[%emt 0:00:47]} 7. Qb3 {[%emt 0:02:30]} Nc6 {[%emt 0:00:13]} 8. Qxb7 {[%emt 0:15:52]} Nb4 {[%emt 0:00:22]} 9. Rc1 {[%emt 0:00:05]} O-O {[%emt 0:01:19]} 10. Qxc7 {[%emt 0:17:28]} Qxc7 {[%emt 0:00:30]} 11. Bxc7 {[%emt 0:00:02]} Rac8 {[%emt 0:00:50]} 12. Bg3 {[%emt 0:00:16]} Ne4 {[%emt 0:04:06]} 13. a3 {[%emt 0:00:41]} Nxc3 {[%emt 0:04:57]} 14. Rxc3 {[%emt 0:03:42]} Na2 {[%emt 0:11:23]} 15. Rxc8 {[%emt 0:07:17]} Rxc8 {[%emt 0:00:12]} 16. Ne2 {[%emt 0:09:26]} a5 {[%emt 0:16:45]} 17. e4 {[%emt 0:15:21]} Bxe4 {[%emt 0:01:28]} 18. f3 {[%emt 0:00:05]} Bf5 {[%emt 0:09:11]} 19. Bf4 {[%emt 0:01:19]} Rc2 {[%emt 0:00:18]} 20. Bd2 {[%emt 0:01:08]} Rxb2 {[%emt 0:01:10]} 21. Bxa5 {[%emt 0:00:07]} Bxa3 {[%emt 0:01:15]} 22. Ng3 {[%emt 0:00:23]} Bd7 {[%emt 0:03:18]} 23. Be2 {[%emt 0:04:24]} Bd6 {[%emt 0:00:49]} 24. Kf2 {[%emt 0:00:41]} Bb5 {[%emt 0:15:11]} 25. Re1 {[%emt 0:00:08]} Bf4 {[%emt 0:01:22]} 26. Nh5 {[%emt 0:04:45]} Bxh2 {[%emt 0:01:23]} 27. f4 {[%emt 0:04:23]} f5 {[%emt 0:03:37]} 28. Kf3 {[%emt 0:04:00]} Rb3+ {[%emt 0:04:43]} 29. Kf2 {[%emt 0:00:03]} g6 {[%emt 0:02:43]} 30. Bxb5 {[%emt 0:00:41]} Rxb5 {[%emt 0:00:04]} 31. Nf6+ {[%emt 0:01:00]} Kf7 {[%emt 0:01:12]} 32. Bd8 {[%emt 0:00:06]} Rb8 {[%emt 0:06:52]} 33. Nxh7 {[%emt 0:00:24]} Rxd8 {[%emt 0:00:59]} 34. Ng5+ {[%emt 0:00:05]} Kg8 {[%emt 0:00:05]} 35. g3 {[%emt 0:03:25]} Rb8 {[%emt 0:02:54]} 36. Kg2 Rb2+ 37. Kh3 Nc3 38. Rh1 Ne2 39. Kxh2 Nxf4+ 40. Kg1 Rg2+ 41. Kf1 Rxg3 42. Rg1 Rxg1+ 43. Kxg1 Ne2+ 44. Kf2 Nxd4 45. Ke3 Nc6 46. Kf4 Kg7 47. Nf3 Kf6 48. Ng5 Nd8 49. Nh7+ Kg7 50. Ng5 Nf7 51. Ne6+ Kf6 52. Nc7 g5+ 53. Ke3 Ke5 54. Nb5 g4 0-1

[Event "21st Sants Open 2019"]
[Site "Cotxeres de Sants"]
[Date "2019.08.26"]
[Round "4.6"]
[White "Neef, Maximilian"]
[Black "Percivaldi, Martin"]
[Result "1-0"]
[ECO "A05"]
[WhiteElo "2481"]
[BlackElo "2391"]
[Annotator "ChessBase"]
[PlyCount "89"]
[EventDate "2019.08.22"]
[EventType "swiss"]
[EventCountry "ESP"]
[SourceTitle "playchess.com"]
[Source "ChessBase"]
[SourceQuality "1"]
[TimeControl "40/5400+30:1800+30"]

1. Nf3 Nf6 2. g3 b6 3. Bg2 Bb7 4. O-O g6 5. d4 Bg7 6. c4 e6 7. Bf4 O-O 8. Qc2 a5 9. Nc3 Na6 10. e4 d5 11. cxd5 exd5 12. e5 Ne4 13. Rad1 Nxc3 14. bxc3 Qd7 15. Rfe1 c6 16. h4 Nc7 17. Qb1 b5 18. h5 Rfe8 19. Ng5 Bc8 20. Bh3 Qd8 21. e6 Nxe6 22. Bxe6 Bxe6 23. hxg6 hxg6 24. Rxe6 Rxe6 25. Nxe6 fxe6 26. Qxg6 Qf6 27. Qg4 Qf5 28. Qe2 Kf7 29. Bc7 a4 30. g4 Qh7 31. Re1 Qh6 32. Qf3+ Bf6 33. Be5 Rh8 34. Kg2 Ke7 35. Bxf6+ Qxf6 36. Qg3 Kf7 37. a3 Rg8 38. Rh1 Qg6 39. Qc7+ Kf8 40. Qd6+ Kf7 41. Qc7+ Kf6 42. f3 Qc2+ 43. Kg3 Rxg4+ 44. fxg4 Qd3+ 45. Kh4 1-0